bitfinex/quotes_ETHUSD_20251023
["timestamp","ask_amount","ask_price","bid_price","bid_amount"]
[1761208373567,4.2220189,3898.7,3898.6,0.002]
[1761208374276,2.6676189,3898.7,3898.6,0.002]
[1761208374575,0.001,3898.9,3898.6,0.002]
[1761208374576,0.001,3898.9,3898.6,0.3311]
[1761208374737,2.56489176,3898.8,3898.6,0.3311]
[1761208374941,2.56584254,3898.9,3898.6,0.3311]
[1761208375345,1.5552,3898.8,3898.6,0.3311]
[1761208376443,0.001,3898.9,3898.6,0.3311]
[1761208376644,0.001,3898.9,3898.7,0.36201]
[1761208376843,1.5552,3898.8,3898.7,0.36201]
[1761208378466,0.001,3898.9,3898.8,0.50688]
[1761208378665,0.001,3898.9,3898.7,0.36201]
[1761208380250,0.001,3898.9,3898.8,3.09742067]
[1761208380454,0.001,3898.9,3898.8,3.7000644]
[1761208381075,0.001,3898.9,3898.8,5.2552644]
[1761208381279,0.001,3898.9,3898.8,5.90344703]
[1761208381960,0.001,3898.9,3898.8,6.03144703]
[1761208382689,0.001,3899.3,3899.2,4.62670864]
[1761208382906,0.001,3899.3,3899.2,9.07932405]
[1761208383187,0.001,3899.3,3899.2,9.53574754]
[1761208383395,0.001,3899.3,3899.2,0.81820736]
[1761208383610,0.001,3899.3,3899.2,3.298]
[1761208384177,0.001,3899.3,3899.2,3.80488]
[1761208384565,0.001,3899.3,3899.2,3.298]
[1761208385003,0.001,3899.3,3899.2,3.80488]
[1761208387189,0.001,3899.3,3899.2,3.298]
[1761208387190,2.56556287,3899.3,3899.2,3.298]
[1761208390830,0.001,3899.3,3899.2,3.80488]
[1761208391120,0.001,3899.3,3899.2,4.185368]
[1761208392301,0.001,3899.3,3899.2,3.80488]
[1761208393617,0.001,3899.3,3899.2,3.93288]
[1761208394614,0.0002,3899.3,3899.2,3.93288]
[1761208396294,0.0002,3899.3,3899.2,3.80488]
[1761208396527,0.0002,3899.3,3899.2,3.93288]
[1761208396694,0.0002,3899.3,3899.2,6.89079664]
[1761208403320,0.0002,3899.3,3899.2,4.326168]
[1761208403517,0.0002,3899.3,3899.2,6.89079664]
[1761208403834,0.0002,3899.3,3899.2,4.326168]
[1761208404031,0.0002,3899.3,3899.2,6.89079664]
[1761208407605,0.0002,3899.3,3899.2,6.38391664]
[1761208408002,0.0002,3899.3,3899.2,3.08591664]
[1761208408205,0.0002,3899.3,3899.2,6.37391664]
[1761208408418,0.0002,3899.3,3899.2,10.18391664]
[1761208409233,0.0002,3899.3,3899.2,10.69079664]
[1761208414357,0.0002,3899.3,3899.2,6.88079664]
[1761208415720,0.0002,3899.3,3899.2,3.809288]
[1761208415920,0.0002,3899.3,3899.2,3.70693428]
[1761208416244,0.0002,3899.3,3899.2,6.77844292]
[1761208416444,0.0002,3899.3,3899.2,6.75279664]
[1761208419078,0.0004,3899.7,3899.6,3.07124557]
[1761208419396,0.0004,3899.7,3899.6,6.94347006]
[1761208419546,0.0004,3899.7,3899.6,6.91782641]
[1761208422276,0.0004,3899.7,3899.6,12.28302641]
[1761208425442,0.001,3900.1,3900.0,4.62618256]
[1761208425647,0.001,3900.1,3900.0,7.93482358]
[1761208425866,0.001,3900.1,3900.0,9.34351315]
[1761208426255,0.001,3900.3,3900.0,9.34351315]
[1761208426256,0.001,3900.3,3900.2,3.07085107]
[1761208426475,0.001,3900.3,3900.2,4.65169078]
[1761208426683,0.001,3900.7,3900.6,4.62578814]
[1761208426878,0.001,3900.7,3900.6,9.63878814]
[1761208427061,0.001,3900.7,3900.6,11.24343629]
[1761208428465,0.001,3900.7,3900.6,11.75925339]
[1761208430290,0.001,3900.7,3900.6,1.60464815]
[1761208430497,0.001,3900.7,3900.6,5.97370814]
[1761208430948,0.4525,3900.7,3900.6,3.41]
[1761208431350,0.4525,3900.7,3900.6,6.48058814]
[1761208431546,0.4525,3900.7,3900.6,5.97370814]
[1761208432008,0.4525,3900.7,3900.6,3.41]
[1761208432295,0.4525,3900.7,3900.6,3.91688]
[1761208436488,0.001,3900.7,3900.6,6.48058814]
[1761208436684,0.001,3900.7,3900.6,7.30154695]
[1761208443534,0.0002,3900.7,3900.6,7.30154695]
[1761208443897,0.0002,3900.7,3900.6,11.11154695]
[1761208444844,0.001,3901.0,3900.9,4.62559098]
[1761208445138,0.001,3901.0,3900.9,9.63859098]
[1761208445353,0.001,3901.0,3900.9,11.32190501]
[1761208449942,0.001,3901.0,3900.9,15.13190501]
[1761208451543,0.001,3901.0,3900.9,14.62502501]
[1761208451915,0.001,3901.0,3900.9,15.13190501]
[1761208453741,0.001,3901.0,3900.9,8.03790501]
[1761208453742,0.4742,3901.0,3900.9,8.03790501]
[1761208454040,0.4742,3901.0,3900.9,9.76370501]
[1761208454741,0.001,3901.0,3900.9,9.89170501]
[1761208454915,0.001,3901.0,3900.9,9.38482501]
[1761208456124,0.001,3901.0,3900.9,9.89170501]
[1761208456862,0.4742,3901.0,3900.9,9.89170501]
[1761208458260,0.4742,3901.0,3900.9,8.20839098]
[1761208458456,0.001,3901.0,3900.9,8.20839098]
[1761208460983,0.4742,3901.0,3900.9,8.20839098]
[1761208462179,0.4742,3901.0,3900.9,5.64488]
[1761208462346,0.4742,3901.0,3900.6,0.002]
[1761208462532,0.4742,3901.0,3898.8,1.27]
[1761208462533,0.2285,3900.7,3898.8,2.999]
[1761208462859,2.56372451,3900.6,3900.3,0.004]
[1761208463081,1.01903395,3900.6,3900.3,0.004]
[1761208463291,0.4732,3900.5,3900.3,0.004]
[1761208464209,0.76948035,3900.4,3900.3,0.004]
[1761208464366,0.76948035,3900.4,3900.3,3.10042439]
[1761208464683,0.7017,3900.7,3900.6,0.50688]
[1761208464893,1.47106787,3900.7,3900.6,0.50688]
[1761208468056,1.47026787,3900.7,3900.6,0.50688]
[1761208470696,0.99706787,3900.7,3900.6,0.50688]
[1761208470995,1.43746787,3900.7,3900.6,0.50888]
[1761208471696,0.001,3901.0,3900.7,3.07050197]
[1761208471999,0.227,3900.8,3900.7,3.07052242]
[1761208472158,0.227,3900.8,3900.7,6.35252242]
[1761208472372,0.227,3900.8,3900.7,6.48052242]
[1761208473570,0.001,3901.0,3900.9,2.56351098]
[1761208474071,0.001,3901.0,3900.9,2.69151098]
[1761208474996,0.001,3901.0,3900.9,3.19839098]
[1761208476813,0.001,3901.0,3900.9,3.22402608]
[1761208476967,0.001,3901.0,3900.9,3.19839098]
[1761208477172,0.001,3901.0,3900.9,4.229865]
[1761208477603,0.4414,3901.0,3900.9,4.229865]
[1761208477813,0.4414,3901.0,3900.9,1.66635402]
[1761208477971,0.4414,3901.0,3900.9,0.128]
[1761208478199,0.4414,3901.0,3900.9,3.409]
[1761208478506,0.4414,3901.0,3900.9,3.91588]
[1761208478707,0.4414,3901.0,3900.9,3.409]
[1761208479321,0.4414,3901.0,3900.9,3.91588]
[1761208481006,0.4414,3901.0,3900.9,3.409]
[1761208481209,0.8828,3901.0,3900.9,3.409]
[1761208482295,0.8828,3901.0,3900.9,0.128]
[1761208482495,0.8828,3901.0,3900.9,3.409]
[1761208484831,0.4414,3901.0,3900.9,4.25698]
[1761208488056,0.001,3901.0,3900.9,4.25698]
[1761208490250,0.001,3901.0,3900.9,5.81528]
[1761208492545,0.0002,3901.0,3900.9,5.81528]
[1761208494040,0.001,3901.1,3900.9,9.62528]
[1761208494240,0.001,3901.1,3901.0,3.05334245]
[1761208494575,0.4404,3902.6,3901.0,3.05334245]
[1761208494576,0.10252296,3903.1,3901.2,4.75908]
[1761208494745,0.227,3903.5,3901.4,2.06208]
[1761208495062,0.4404,3903.4,3901.5,0.02563116]
[1761208495260,0.4404,3903.4,3901.6,0.50688]
[1761208495462,0.4404,3903.4,3901.8,2.06208]
[1761208495664,0.4404,3903.4,3901.9,0.02562853]
[1761208495831,0.4404,3903.4,3902.0,0.50688]
[1761208496036,0.4404,3903.4,3902.2,2.06208]
[1761208496229,0.4404,3903.4,3902.3,0.02562591]
[1761208496435,0.4404,3903.4,3902.5,0.50688]
[1761208496765,0.227,3902.4,3901.4,1.729]
[1761208497061,0.227,3902.4,3901.7,0.50688]
[1761208497567,0.227,3902.4,3901.5,3.29]
[1761208497568,0.4404,3902.7,3901.6,0.50688]
[1761208497747,0.4404,3902.7,3901.8,0.50087676]
[1761208497949,0.4404,3902.7,3901.9,3.295]
[1761208498969,0.4404,3902.7,3902.0,0.02562788]
[1761208499549,0.4404,3902.7,3901.9,3.295]
[1761208499875,0.4404,3902.7,3902.0,0.53250788]
[1761208500074,0.4404,3902.7,3902.2,0.50688]
[1761208500254,0.4404,3902.7,3902.4,0.50688]
[1761208500580,0.4404,3902.7,3902.5,0.02562459]
[1761208501678,0.4404,3902.7,3901.3,1.729]
[1761208501983,0.2306,3901.4,3901.3,1.729]
[1761208502142,0.2306,3901.4,3901.3,3.7919]
[1761208502343,0.6772,3901.4,3901.3,3.7919]
[1761208502558,0.6772,3901.4,3901.3,3.619]
[1761208503578,0.6772,3901.4,3901.3,4.12588]
[1761208503779,0.6772,3901.4,3901.3,3.619]
[1761208504490,0.6772,3901.4,3901.3,4.12588]
[1761208504663,0.6772,3901.4,3901.3,4.25388]
[1761208504845,0.6772,3901.4,3901.3,3.747]
[1761208505250,0.6772,3901.4,3901.3,4.25388]
[1761208508153,0.6782,3901.4,3901.3,4.25388]
[1761208509662,0.2316,3901.4,3901.3,4.551268]
[1761208509854,0.6782,3901.4,3901.3,4.551268]
[1761208510580,0.2316,3901.4,3901.3,4.551268]
[1761208512384,0.6782,3901.4,3901.3,4.551268]
[1761208516108,0.2316,3901.4,3901.3,4.551268]
[1761208516811,0.6782,3901.4,3901.3,4.551268]
[1761208517108,0.001,3901.4,3901.3,4.551268]
[1761208518014,0.4476,3901.4,3901.3,0.50688]
[1761208518185,0.4476,3901.4,3901.3,3.79588]
[1761208519707,0.4476,3901.4,3901.3,3.92388]
[1761208520010,0.4476,3901.4,3901.3,0.128]
[1761208520181,0.4476,3901.4,3901.3,3.416]
[1761208520381,0.5756,3901.4,3901.3,3.416]
[1761208522386,0.5756,3901.4,3901.3,3.288]
[1761208522891,0.4476,3901.4,3901.3,3.288]
[1761208524138,0.001,3901.4,3901.3,3.288]
[1761208524439,0.4476,3901.4,3901.3,3.288]
[1761208525114,0.4476,3901.4,3900.9,0.002]
[1761208525403,5.81273326,3901.0,3900.9,0.002]
[1761208525613,5.81273326,3901.0,3900.9,0.087]
[1761208525813,6.24993326,3901.0,3900.9,0.087]
[1761208527596,1.9924,3901.0,3900.9,0.087]
[1761208530334,6.24993326,3901.0,3900.9,0.002]
[1761208530538,6.24993326,3901.0,3899.1,0.002]
[1761208530539,0.2229,3900.3,3899.1,0.002]
[1761208530775,1.5552,3899.3,3899.1,0.002]
[1761208531372,0.5584553,3899.2,3898.9,0.379]
[1761208531669,0.5584553,3899.2,3898.9,0.002]
[1761208531670,5.81273326,3899.0,3898.9,0.002]
[1761208531868,1.5552,3898.9,3898.8,0.002]
[1761208532079,0.6787,3898.9,3898.8,0.002]
[1761208532245,0.8067,3898.9,3898.8,0.002]
[1761208532445,2.3619,3898.9,3898.8,0.002]
[1761208532846,0.8067,3898.9,3898.8,0.002]
[1761208533046,0.96266579,3898.9,3898.8,0.002]
[1761208533978,0.83466579,3898.9,3898.8,0.13]
[1761208534175,0.6787,3898.9,3898.8,0.13]
[1761208535458,0.6787,3898.9,3898.8,0.002]
[1761208535664,0.8067,3898.9,3898.8,0.002]
[1761208535866,0.8067,3898.9,3898.4,0.13]
[1761208536065,0.2229,3897.8,3897.1,0.002]
[1761208536432,0.4558,3897.7,3897.1,0.002]
[1761208536628,0.128,3897.5,3896.9,0.128]
[1761208536936,0.128,3897.5,3895.5,0.1699]
[1761208536937,0.2229,3897.0,3895.5,0.1699]
[1761208537139,0.2229,3897.0,3895.6,0.248]
[1761208537340,0.2229,3897.0,3896.6,0.128]
[1761208537341,0.4558,3896.9,3896.6,0.128]
[1761208537566,0.4558,3896.9,3896.6,1.57]
[1761208537748,0.4558,3896.9,3896.6,1.442]
[1761208538047,0.128,3896.8,3896.6,1.442]
[1761208538463,0.4558,3896.7,3896.6,1.442]
[1761208539066,0.4558,3896.7,3896.3,0.128]
[1761208539274,0.4558,3896.7,3896.2,0.128]
[1761208539470,0.4558,3896.7,3896.1,0.272]
[1761208539698,0.128,3896.6,3896.1,0.272]
[1761208540201,0.4558,3896.5,3896.1,0.272]
[1761208541501,0.455,3896.5,3896.1,0.272]
[1761208544064,0.4558,3896.4,3896.1,0.272]
[1761208544264,0.4558,3896.4,3896.1,0.274]
[1761208554429,0.128,3896.6,3896.1,0.274]
[1761208554631,0.4558,3896.5,3896.1,0.274]
[1761208555435,0.4558,3896.5,3896.1,0.002]
[1761208555802,0.128,3896.4,3896.1,0.002]
[1761208556203,0.4558,3896.3,3896.1,0.002]
[1761208563813,0.128,3896.2,3896.1,0.002]
[1761208564145,0.27691248,3896.2,3896.1,0.002]
[1761208564346,1.17893727,3896.2,3896.1,0.002]
[1761208564565,0.73041248,3896.2,3896.1,0.002]
[1761208564855,0.5815,3896.2,3896.1,0.002]
[1761208565952,0.5807,3896.2,3896.1,0.002]
[1761208570583,0.1272,3896.2,3896.1,0.002]
[1761208570901,0.001,3896.5,3896.1,0.002]
[1761208571073,0.001,3896.5,3896.1,0.13]
[1761208571982,0.001,3896.5,3896.1,0.3007]
[1761208573279,0.001,3896.5,3896.1,0.13]
[1761208573681,0.001,3896.5,3896.1,0.3007]
[1761208574092,0.001,3896.5,3896.2,0.1707]
[1761208574590,0.001,3896.5,3896.1,0.13]
[1761208574807,0.4545,3896.5,3896.1,0.13]
[1761208575007,0.001,3896.5,3896.1,0.13]
[1761208575405,0.001,3896.5,3896.2,0.1707]
[1761208575735,0.001,3896.5,3896.3,1.584]
[1761208576022,0.001,3896.5,3896.4,2.153]
[1761208577487,0.4545,3896.5,3896.4,2.153]
[1761208577691,0.001,3896.5,3896.4,2.153]
[1761208578190,0.4545,3896.5,3896.1,0.002]
[1761208580325,0.001,3896.5,3896.1,0.002]
[1761208580733,0.001,3896.5,3896.2,0.1707]
[1761208580904,0.001,3896.5,3896.1,0.002]
[1761208581940,0.001,3896.5,3896.1,0.1727]
[1761208582316,0.001,3896.5,3896.1,0.002]
[1761208583201,0.4535,3896.4,3896.1,0.002]
[1761208583699,0.001,3896.5,3896.1,0.002]
[1761208584499,0.4705,3896.4,3896.1,0.002]
[1761208585801,0.4705,3896.4,3896.3,0.128]
[1761208586832,0.001,3896.5,3896.3,0.128]
[1761208587207,0.4705,3896.4,3896.3,0.128]
[1761208587953,0.001,3896.5,3896.3,0.128]
[1761208588238,0.4715,3896.5,3896.3,0.128]
[1761208588811,0.4715,3896.5,3896.1,0.002]
[1761208589011,0.5995,3896.5,3896.1,0.002]
[1761208589407,0.4568,3896.4,3896.1,0.002]
[1761208589844,0.128,3896.3,3896.1,0.002]
[1761208590043,0.4568,3896.4,3896.1,0.002]
[1761208590230,0.4568,3896.3,3896.1,0.002]
[1761208590540,0.456,3896.3,3896.1,0.002]
[1761208590736,0.001,3896.5,3896.1,0.002]
[1761208592411,0.4568,3896.4,3896.1,0.002]
[1761208597053,0.001,3896.5,3896.1,0.002]
[1761208597215,0.4578,3896.5,3896.1,0.002]
[1761208597819,0.001,3896.5,3896.1,0.1735]
[1761208598047,0.001,3896.5,3896.1,0.002]
[1761208599866,0.001,3896.5,3896.2,0.1715]
[1761208600024,0.001,3896.5,3896.4,0.128]
[1761208601555,0.001,3896.5,3896.4,0.2995]
[1761208602976,4.12260574,3896.5,3896.4,0.2995]
[1761208603273,4.12260574,3896.5,3896.4,0.128]
[1761208604643,4.12260574,3896.5,3896.4,0.2995]
[1761208605564,4.12260574,3896.5,3896.4,0.128]
[1761208607779,2.56660335,3896.2,3896.1,0.002]
[1761208608278,4.12180335,3896.2,3896.1,0.13]
[1761208609074,1.5552,3896.2,3896.1,0.13]
[1761208609277,4.12180335,3896.2,3896.1,0.002]
[1761208609644,4.12180335,3896.2,3896.1,3.29]
[1761208615081,4.12100335,3896.2,3896.1,3.29]
[1761208619116,4.12100335,3896.2,3896.1,3.418]
[1761208621188,4.78985623,3896.2,3896.1,0.13]
[1761208621413,5.26425623,3896.2,3895.7,1e-08]
[1761208621734,8.38999599,3895.8,3895.7,1e-08]
[1761208622304,8.86439599,3895.8,3895.7,1e-08]
[1761208622508,1.5552,3895.4,3895.3,0.002]
[1761208622813,1.5552,3895.4,3894.1,0.1715]
[1761208622814,2.56792152,3894.2,3894.1,0.1715]
[1761208622978,4.12312152,3894.2,3894.1,0.2995]
[1761208623630,4.12312152,3894.2,3894.1,0.128]
[1761208624689,4.59752152,3894.2,3894.1,0.128]
[1761208625203,4.12312152,3894.2,3894.1,0.128]
[1761208626119,2.56825127,3893.7,3893.6,1.204]
[1761208626283,2.56825127,3893.7,3893.6,1.3328]
[1761208627589,4.59785127,3893.7,3893.6,0.1288]
[1761208627790,2.56871307,3893.0,3892.9,0.1715]
[1761208627989,2.56863986,3893.2,3892.9,3.4595]
[1761208628189,2.56864709,3893.1,3893.0,0.34595]
[1761208628595,2.56864709,3893.1,3893.0,0.47475]
[1761208628788,2.56864709,3893.1,3893.0,0.1288]
[1761208630013,2.56864709,3893.1,3893.0,3.4168]
[1761208630186,3.04304709,3893.1,3893.0,3.4168]
[1761208631609,3.04304709,3893.1,3893.0,3.288]
[1761208632609,2.56864709,3893.1,3893.0,3.288]
[1761208633005,2.56858111,3893.2,3892.3,0.1715]
[1761208633226,2.56901692,3892.6,3892.4,3.289]
[1761208633428,2.56904303,3892.5,3892.4,3.289]
[1761208636130,1.0105704,3892.5,3891.4,0.1715]
[1761208636336,1.5552,3892.4,3891.5,3.289]
[1761208636632,1.5552,3892.4,3891.5,3.4605]
[1761208636823,2.56940027,3892.0,3891.6,0.1715]
[1761208637025,2.56945984,3891.9,3891.6,0.1715]
[1761208637335,1.5552,3892.2,3891.6,0.1715]
[1761208637531,1.5552,3892.3,3891.7,0.62017185]
[1761208637733,2.5693886,3892.0,3891.7,0.62017185]
[1761208637936,2.5693886,3892.0,3891.8,0.1715]
[1761208638306,2.5693285,3892.1,3891.8,0.1715]
[1761208638526,1.5552,3892.1,3891.8,0.1715]
[1761208638841,2.56925063,3892.2,3891.8,0.1715]
[1761208638842,4.124389,3892.3,3891.8,0.1715]
[1761208639033,1.5552,3892.3,3891.8,0.1715]
[1761208639202,1.5552,3892.1,3891.8,0.1715]
[1761208639398,1.5544,3892.1,3891.8,0.1715]
[1761208640021,2.56905331,3892.5,3891.8,0.1715]
[1761208640022,2.56905799,3892.5,3891.9,0.50688]
[1761208640225,2.56894253,3892.7,3892.0,0.1715]
[1761208640427,2.56883396,3892.9,3892.2,0.50688]
[1761208640644,2.5683959,3893.5,3892.2,0.50688]
[1761208640821,2.5683959,3893.5,3892.3,0.1715]
[1761208641017,2.56880882,3892.9,3892.3,0.1715]
[1761208641239,3.3218384,3893.5,3892.3,0.1715]
[1761208641435,1.5552,3892.8,3892.4,0.50688]
[1761208641622,1.5552,3892.9,3892.5,0.1715]
[1761208641816,0.2237,3893.8,3892.7,0.1288]
[1761208642031,2.56853661,3893.3,3892.8,3.29]
[1761208642232,2.5686567,3893.1,3892.9,0.1715]
[1761208642432,2.56871603,3893.0,3892.8,3.29]
[1761208642636,0.2237,3893.9,3892.9,0.1288]
[1761208642837,2.56866771,3893.1,3892.8,3.29]
[1761208643212,2.56866771,3893.1,3893.0,0.1288]
[1761208643544,2.56860557,3893.2,3893.0,0.1288]
[1761208643710,2.56864709,3893.1,3893.0,0.1288]
[1761208644111,2.5685916,3893.2,3893.0,0.1288]
[1761208644546,1.5552,3894.1,3893.0,0.3003]
[1761208644753,1.5552,3893.7,3893.1,0.67838]
[1761208645117,1.5552,3893.7,3893.6,0.1288]
[1761208645433,4.12345127,3893.7,3893.6,3.4178]
[1761208646042,4.12345127,3893.7,3893.6,3.5893]
[1761208646432,4.12345127,3893.7,3888.0,65.9617834]
[1761208646433,5.39798159,3893.7,3892.1,0.1715]
[1761208646743,0.001,3893.2,3892.3,0.50688]
[1761208646926,2.56889847,3892.8,3892.3,0.50688]
[1761208647251,0.001,3893.2,3892.5,0.50688]
[1761208647437,2.56962506,3893.2,3892.6,0.19718977]
[1761208647747,2.56962506,3893.2,3892.7,0.32730634]
[1761208647920,2.56962506,3893.2,3892.8,3.289]
[1761208648116,0.001,3893.2,3892.9,0.50688]
[1761208648321,0.001,3893.2,3892.9,0.67838]
[1761208648551,0.001,3893.2,3893.0,0.1715]
[1761208649256,0.001,3893.2,3893.0,0.60096863]
[1761208649752,2.56959098,3893.2,3893.0,0.42946863]
[1761208650052,2.56959098,3893.2,3892.9,0.50688]
[1761208650240,0.001,3893.2,3892.9,0.50688]
[1761208650857,0.001,3893.2,3893.0,0.1715]
[1761208652354,2.56871307,3893.0,3891.8,0.002]
[1761208652654,2.79333909,3891.9,3891.8,0.002]
[1761208652855,2.56943909,3891.9,3891.8,0.153]
[1761208653517,2.56928488,3892.2,3891.8,0.3245]
[1761208653723,2.56931771,3892.1,3891.8,0.3245]
[1761208653964,2.5692577,3892.2,3891.8,0.3245]
[1761208654133,2.5692577,3892.2,3891.8,0.153]
[1761208654322,2.5690906,3892.5,3891.8,0.153]
[1761208654323,2.56943909,3891.9,3891.8,0.153]
[1761208654523,2.56934404,3892.1,3891.8,0.153]
[1761208654760,2.56936983,3892.1,3891.8,0.153]
[1761208655264,2.56930791,3892.1,3891.8,0.153]
[1761208655767,2.56924921,3892.2,3891.8,0.153]
[1761208655969,2.56903378,3892.6,3892.0,0.50688]
[1761208656151,2.56905239,3892.5,3892.0,0.50688]
[1761208656663,2.56905239,3892.5,3892.4,0.1288]
[1761208656867,2.56905239,3892.5,3892.4,3.4188]
[1761208657376,2.56901467,3892.6,3892.4,3.4188]
[1761208657682,2.56904303,3892.5,3892.4,3.4188]
[1761208658053,2.56943909,3891.9,3891.8,0.002]
[1761208658353,2.56943909,3891.9,3891.8,3.297]
[1761208659875,3.01093909,3891.9,3891.8,3.297]
[1761208660038,2.56943909,3891.9,3891.8,3.297]
[1761208662771,2.56864753,3893.1,3891.9,0.50688]
[1761208662970,1.5552,3893.0,3892.0,0.380388]
[1761208663172,2.56930705,3892.1,3891.9,0.50688]
[1761208663651,2.56943909,3891.9,3891.8,3.297]
[1761208663847,2.56863909,3891.9,3891.8,3.297]
[1761208665979,4.56533909,3891.9,3891.8,0.002]
[1761208666693,2.57035886,3892.1,3891.8,0.002]
[1761208666694,2.56942697,3892.0,3891.8,0.002]
[1761208666994,2.56943909,3891.9,3891.8,0.002]
[1761208667859,2.5693866,3892.0,3891.8,0.002]
[1761208668362,2.5693866,3892.0,3891.9,0.1288]
[1761208668363,3.0108866,3892.0,3891.9,0.1288]
[1761208671391,3.56899947,3892.0,3891.9,2.8388]
[1761208671584,3.0108866,3892.0,3891.9,2.8388]
[1761208675798,2.5693866,3892.0,3891.9,2.8388]
[1761208679910,0.001,3892.1,3891.9,2.8388]
[1761208679911,0.001,3892.1,3891.9,3.0103]
[1761208680114,0.4552,3892.1,3891.9,2.8388]
[1761208680318,2.56943909,3891.9,3891.8,0.002]
[1761208680516,2.56943909,3891.9,3891.8,3.299]
[1761208680715,0.001,3892.1,3891.8,3.299]
[1761208680886,2.56943909,3891.9,3891.8,3.299]
[1761208681219,4.12463909,3891.9,3891.8,3.298]
[1761208684517,4.8396542,3891.9,3891.8,3.298]
[1761208684709,4.12463909,3891.9,3891.8,3.298]
[1761208686317,0.001,3892.0,3891.8,0.002]
[1761208686491,2.57037307,3892.0,3891.9,3.297]
[1761208686691,0.001,3892.0,3891.9,3.297]
[1761208687317,4.12463909,3891.9,3891.8,0.002]
[1761208687520,4.83966031,3891.9,3891.8,3.3]
[1761208688192,4.12463909,3891.9,3891.8,3.3]
[1761208688391,4.12383909,3891.9,3891.8,3.3]
[1761208690222,0.001,3892.0,3891.8,3.4288]
[1761208690521,2.57038129,3892.0,3891.8,3.4288]
[1761208690892,0.001,3892.0,3891.9,0.63568]
[1761208691093,0.001,3892.0,3891.9,1.24359239]
[1761208691289,0.001,3892.0,3891.9,1.217898]
[1761208691725,0.001,3892.0,3891.9,1.046398]
[1761208693037,0.001,3892.0,3891.9,1.217898]
[1761208693554,0.001,3892.0,3891.9,1.24359239]
[1761208693744,0.001,3892.0,3891.9,1.217898]
[1761208695055,0.001,3892.0,3891.9,1.046398]
[1761208695217,2.57037307,3892.0,3891.9,0.1288]
[1761208695634,0.001,3892.0,3891.9,0.1288]
[1761208695923,0.001,3892.0,3891.9,0.3003]
[1761208696259,3.02457307,3892.0,3891.9,0.1288]
[1761208696769,4.57977307,3892.0,3891.9,0.1288]
[1761208697139,5.29477944,3892.0,3891.9,0.1288]
[1761208697523,2.56943909,3891.9,3891.8,3.4288]
[1761208697724,3.02363909,3891.9,3891.8,3.4288]
[1761208698835,4.57883909,3891.9,3891.8,3.305]
[1761208699968,4.12490319,3891.5,3891.4,3.304]
[1761208700134,4.94987062,3891.5,3891.4,3.304]
[1761208700334,5.40407062,3891.5,3891.4,3.304]
[1761208703062,5.40407062,3891.5,3891.4,0.002]
[1761208703341,5.53287062,3891.5,3891.4,0.002]
[1761208706855,17.50723522,3891.5,3891.4,0.002]
[1761208707051,1.5552,3891.1,3889.8,0.099]
[1761208707407,0.2285,3889.4,3888.2,2.74332661]
[1761208707681,1.5552,3890.4,3888.5,2.74317389]
[1761208707889,1.5552,3890.2,3888.6,0.55039273]
[1761208708301,0.4711,3890.1,3888.6,0.55039273]
[1761208708501,0.4711,3890.1,3888.7,3.301]
[1761208708697,2.57127262,3889.2,3888.8,3.301]
[1761208708849,2.57110045,3889.4,3888.0,60.0]
[1761208708850,2.5714425,3888.9,3888.0,60.0]
[1761208709054,2.57156674,3888.7,3888.1,3.307]
[1761208709300,2.57160201,3888.7,3888.1,3.307]
[1761208709475,2.57164252,3888.6,3888.2,2.60193063]
[1761208709970,3.03592443,3888.6,3888.2,2.60193063]
[1761208710174,2.57162443,3888.6,3888.2,2.60193063]
[1761208710587,2.571689,3888.5,3888.2,2.60193063]
[1761208711121,2.57169422,3888.5,3888.2,2.60193063]
[1761208711284,2.57168982,3888.5,3888.2,2.60193063]
[1761208711487,2.57175708,3888.4,3888.2,2.60193063]
[1761208711664,2.57181801,3888.3,3888.2,2.60193063]
[1761208712071,2.57176409,3888.4,3888.2,2.60193063]
[1761208712290,2.57174951,3888.5,3888.1,3.307]
[1761208712496,2.5719503,3888.1,3888.0,60.0]
[1761208712793,4.12621896,3888.3,3888.0,59.5305]
[1761208712992,2.5719503,3888.1,3888.0,59.5305]
[1761208713363,2.57183257,3888.3,3888.0,59.5305]
[1761208713557,0.4597,3888.8,3888.0,59.5305]
[1761208713889,2.57188561,3888.2,3888.0,59.5305]
[1761208714060,2.5719503,3888.1,3888.0,59.5305]
[1761208714254,0.2188,3888.9,3888.0,59.5305]
[1761208714255,0.6785,3888.9,3888.0,59.5305]
[1761208714494,2.57172084,3888.5,3888.0,59.5305]
[1761208714680,2.57175194,3888.4,3888.0,59.5305]
[1761208714987,0.4597,3888.8,3888.1,0.2348]
[1761208715188,2.57162167,3888.6,3888.1,0.2348]
[1761208715563,2.57149958,3888.8,3888.1,0.705]
[1761208715763,1.5552,3888.8,3888.1,3.27694595]
[1761208715977,1.5552,3888.8,3888.2,0.4702]
[1761208716177,4.12669023,3888.8,3888.2,3.07213063]
[1761208716495,1.5552,3888.8,3888.2,3.07213063]
[1761208716896,1.5552,3888.8,3888.7,0.1288]
[1761208717098,0.2188,3890.0,3888.7,3.4468]
[1761208717395,2.57095501,3889.7,3888.8,3.04167388]
[1761208717596,0.29215391,3890.0,3889.5,0.1288]
[1761208717899,0.1288,3890.1,3889.6,3.318]